Workbook

Sheet Mestaruussarja
B1: Kai Luoma | E1: 15.5.1967
B2: MESTARUUSSARJA | E2: Runkosarja | I2: Kärkilyönnit (KL), pesänvälit | P2: Ylempi loppusarja | W2: Alempi loppusarja | AD2: Arvo-ottelut | AH2: Mitalit
B3: Vuosi | C3: Sija | D3: Seura | E3: OTT | F3: KUN | G3: LÖI | H3: TOI | I3: KL | J3: 0 > 1 | K3: 1 > 2 | L3: 2 > 3 | M3: 3 > k | N3: KL-% | P3: OTT | Q3: KUN | R3: LÖI | S3: TOI | T3: KL | U3: KL-% | W3: OTT | X3: KUN | Y3: LÖI | Z3: TOI | AA3: KL | AB3: KL-% | AD3: IL | AE3: LL | AF3: Cup | AG3: K | AH3: H | AI3: P
B4: 1984 | C4: 11. | D4: HP | E4: 0 | F4: 0 | G4: 0 | H4: 0 | I4: 0 | J4: 0 | K4: 0 | L4: 0 | M4: 0 | N4: ---- | W4: 4 | X4: 0 | Y4: 0 | Z4: 2 | AA4: 14 | AB4: 42.4 %
B5: 1985 | C5: 3. | D5: HP | F5: ykkössarja
B6: 1986 | C6: 10. | D6: HP | E6: 22 | F6: 0 | G6: 3 | H6: 8 | I6: 39 | J6: 20 | K6: 7 | L6: 9 | M6: 3 | N6: 32.0 % | W6: 8 | X6: 0 | Y6: 2 | Z6: 2 | AA6: 25 | AB6: 41.7 %
B7: 1987 | C7: 5. | D7: HP | F7: ykkössarja
B8: 1988 | C8: 8. | D8: HP 2 | F8: suomensarja
B9: 1988 | C9: 3. | D9: HP | F9: ykkössarja
B10: 1989
B11: 1990 | C11: 1. | D11: Puhti | F11: suomensarja
B12: 1991 | C12: 6. | D12: Puhti | F12: ykkössarja
B13: 1992 | C13: 12. | D13: Puhti | F13: ykköspesis
B14: 1993
B15: 1994
B16: 1995
B17: 1996
B18: 1997 | C18: 2. | D18: KPL | F18: ykköspesis
B19: 1998 | C19: 12. | D19: Puhti | F19: ykköspesis
B20: Yhteensä | E20: 22 | F20: 0 | G20: 3 | H20: 8 | I20: 39 | J20: 20 | K20: 7 | L20: 9 | M20: 3 | N20: 32.0 % | P20: =SUM(P10:P19) -> 0 | Q20: =SUM(Q10:Q19) -> 0 | R20: =SUM(R10:R19) -> 0 | S20: =SUM(S10:S19) -> 0 | T20: =SUM(T10:T19) -> 0 | U20: 0.0 % | W20: =PRODUCT(E26) -> 12 | X20: =PRODUCT(F26) -> 0 | Y20: 2 | Z20: 4 | AA20: 39 | AB20: =PRODUCT(N26) -> 41.9 % | AD20: 0 | AE20: 0 | AF20: 0 | AG20: 0 | AH20: 0 | AI20: 0
B21: Pesispörssi | D21: 30.3
B23: URA SM-SARJASSA | E23: OTT | F23: KUN | G23: LÖI | H23: TOI | I23: KL | K23: ka/L | L23: ka/T | M23: ka/KL | N23: KL-% | P23: ENSIMMÄISET RUNKOSARJASSA
B24: Runkosarja | E24: 22 | F24: 0 | G24: 3 | H24: 8 | I24: 39 | K24: 0.14 | L24: 0.36 | M24: 1.77 | N24: 32.0 % | P24: Ottelu | R24: 26.08. 1984 KPL - HP 10-3 | Y24: 1. ottelu | AA24: 17 v 3 kk 11 pv
B25: Ylempi loppusarja | P25: Lyöty | R25: 08.06. 1986 SoJy - HP 4-12 | Y25: 7. ottelu | AA25: 19 v 0 kk 24 pv
B26: Alempi loppusarja | E26: 12 | F26: 0 | G26: 2 | H26: 4 | I26: 39 | K26: 0.17 | L26: 0.33 | M26: 3.25 | N26: 41.9 % | P26: Tuotu | R26: 26.08. 1984 KPL - HP 10-3 | Y26: 1. ottelu | AA26: 17 v 3 kk 11 pv
B27: KAIKKI | E27: 34 | F27: 0 | G27: 5 | H27: 12 | I27: 78 | K27: 0.15 | L27: 0.35 | M27: 2.29 | N27: 36.3 % | P27: Kunnari
B29: Seurat | D29: HP = Haminan Palloilijat (1928)
D30: Puhti = Kuusankosken Puhti (1910)
D31: KPL = Kouvolan Pallonlyöjät (1931)

Sheet MYP, MSS
B1: Kai Luoma | E1: 15.5.1967
B2: YKKÖSPESIS | E2: Runkosarja | L2: Runkosarja TOP-10 | Q2: Jatkosarjat | X2: SUOMENSARJA | AA2: Runkosarja | AH2: Runkosarja TOP-10 | AM2: Jatkosarjat
B3: Vuosi | C3: Sija | D3: Seura | E3: OTT | F3: KUN | G3: LÖI | H3: TOI | I3: KL | J3: KL-% | L3: LÖI | M3: TOI | N3: L+T | O3: KL | Q3: OTT | R3: KUN | S3: LÖI | T3: TOI | U3: KL | V3: KL-% | X3: Vuosi | Y3: Sija | Z3: Seura | AA3: OTT | AB3: KUN | AC3: LÖI | AD3: TOI | AE3: KL | AF3: KL-% | AH3: LÖI | AI3: TOI | AJ3: L+T | AK3: KL | AM3: OTT | AN3: KUN | AO3: LÖI | AP3: TOI | AQ3: KL | AR3: KL-%
B4: 1985 | C4: 3. | D4: HP | E4: 22 | F4: 0 | G4: 9 | H4: 24
B6: 1987 | C6: 5. | D6: HP | E6: 22 | F6: 1 | G6: 3 | H6: 8
B7: 1988 | C7: 3. | D7: HP | E7: 18 | F7: 0 | G7: 4 | H7: 12 | X7: 1988 | Y7: 8. | Z7: HP 2 | AA7: 3 | AB7: 1 | AC7: 2 | AD7: 8
X9: 1990 | Y9: 1. | Z9: Puhti | AA9: 19 | AB9: 3 | AC9: 33 | AD9: 33 | AH9: 4. | AI9: 3. | AJ9: 1.
B10: 1991 | C10: 6. | D10: Puhti | E10: 22 | F10: 1 | G10: 19 | H10: 13 | I10: 100
B11: 1992 | C11: 12. | D11: Puhti | E11: 26 | F11: 2 | G11: 27 | H11: 17 | I11: 114
B13: 1997 | C13: 2. | D13: KPL | E13: 1 | F13: 0 | G13: 1 | H13: 0 | I13: 1
B14: 1998 | C14: 12. | D14: Puhti | E14: 4 | F14: 0 | G14: 3 | H14: 4 | I14: 9
B15: 1999 | C15: 14. | D15: Puhti
B16: YHTEENSÄ | E16: =SUM(E4:E15) -> 115 | F16: =SUM(F4:F15) -> 4 | G16: =SUM(G4:G15) -> 66 | H16: =SUM(H4:H15) -> 78 | I16: =SUM(I4:I15) -> 224 | J16: 0.0 % | K16: =SUM(K4:K15) -> 0 | Q16: =SUM(Q4:Q15) -> 0 | R16: =SUM(R4:R15) -> 0 | S16: =SUM(S4:S15) -> 0 | T16: =SUM(T4:T15) -> 0 | U16: =SUM(U4:U15) -> 0 | V16: 0.0 % | W16: =SUM(W4:W15) -> 0 | X16: YHTEENSÄ | AA16: =SUM(AA4:AA15) -> 22 | AB16: =SUM(AB4:AB15) -> 4 | AC16: =SUM(AC4:AC15) -> 35 | AD16: =SUM(AD4:AD15) -> 41 | AE16: =SUM(AE4:AE15) -> 0 | AF16: 0.0 % | AG16: =SUM(AG4:AG15) -> 0 | AM16: =SUM(AM4:AM15) -> 0 | AN16: =SUM(AN4:AN15) -> 0 | AO16: =SUM(AO4:AO15) -> 0 | AP16: =SUM(AP4:AP15) -> 0 | AQ16: =SUM(AQ4:AQ15) -> 0 | AR16: 0.0 % | AS16: =SUM(AS4:AS15) -> 0
B18: KAIKKI OTTELUT | E18: OTT | F18: KUN | G18: LÖI | H18: TOI | I18: KL | J18: KL-% | L18: ka/L | M18: ka/T | N18: ka/l+t | O18: ka/kl | R18: Seurat | T18: HP = Haminan Palloilijat (1928)
B19: SUPERPESIS | E19: 34 | F19: 0 | G19: 5 | H19: 12 | I19: 78 | J19: 36.3 % | K19: =PRODUCT(I19/J19) -> 214.8760331 | L19: =PRODUCT((F19+G19)/E19) -> 0.15 | M19: =PRODUCT(H19/E19) -> 0.35 | N19: =PRODUCT((F19+G19+H19)/E19) -> 0.50 | O19: =PRODUCT(I19/E19) -> 2.29 | T19: Puhti = Kuusankosken Puhti (1910)
B20: YKKÖSPESIS | E20: =PRODUCT(E16+Q16) -> 115 | F20: =PRODUCT(F16+R16) -> 4 | G20: =PRODUCT(G16+S16) -> 66 | H20: =PRODUCT(H16+T16) -> 78 | I20: =PRODUCT(I16+U16) -> 224 | J20: 0.0 % | K20: =PRODUCT(K16+W16) -> 0 | L20: =PRODUCT((F20+G20)/E20) -> 0.61 | M20: =PRODUCT(H20/E20) -> 0.68 | N20: =PRODUCT((F20+G20+H20)/E20) -> 1.29 | O20: =PRODUCT(I20/53) -> 4.23 | T20: KPL = Kouvolan Pallonlyöjät (1931)
B21: SUOMENSARJA | E21: =PRODUCT(AA16+AM16) -> 22 | F21: =PRODUCT(AB16+AN16) -> 4 | G21: =PRODUCT(AC16+AO16) -> 35 | H21: =PRODUCT(AD16+AP16) -> 41 | I21: =PRODUCT(AE16+AQ16) -> 0 | J21: 0.0 % | K21: =PRODUCT(AG16+AS16) -> 0 | L21: =PRODUCT((F21+G21)/E21) -> 1.77 | M21: =PRODUCT(H21/E21) -> 1.86 | N21: =PRODUCT((F21+G21+H21)/E21) -> 3.64 | O21: =PRODUCT(I21/E21) -> 0.00
B22: YHTEENSÄ | E22: =SUM(E19:E21) -> 171 | F22: =SUM(F19:F21) -> 8 | G22: 106 | H22: 131 | I22: 302 | J22: 0.0 % | K22: =SUM(K19:K21) -> 214.8760331 | L22: =PRODUCT((F22+G22)/E22) -> 0.67 | M22: =PRODUCT(H22/E22) -> 0.77 | N22: =PRODUCT((F22+G22+H22)/E22) -> 1.43 | O22: =PRODUCT(I22/87) -> 3.47

Sheet Arvo-ottelut
B1: ITÄ - LÄNSI - KORTTI
B2: Kai Luoma | C2: 15.5.1967
B3: B-POJAT | C3: Itä - Länsi, tulos | D3: Joukkue | E3: Seura | G3: V | H3: T | I3: H | J3: Up. | K3: Lj. | L3: Palk. | M3: O | N3: K | O3: L | P3: T | Q3: KL | R3: 1 | S3: 2 | T3: 3 | U3: k | V3: KL-% | W3: Pelinjohtaja | X3: Yleisöä
B4: 23.07. 1983 Tyrnävä | C4: 12-9 | D4: Itä | G4: 1 | J4: 3k | K4: 1 | M4: 1 | Q4: 3/7 | R4: 0/2 | S4: 1/1 | T4: 2/3 | U4: 0/4 | V4: 42.9 % | W4: Harri Haka | X4: 420
B5: 14.07. 1984 Lahti | C5: 13-3 | D5: Itä | G5: 1 | J5: 3k | K5: 1 | M5: 1 | P5: 1 | Q5: 5/9 | R5: 2/4 | S5: 2/2 | T5: 1/2 | U5: 0/1 | V5: 55.6 % | W5: Aki Pöntinen | X5: 105
B6: Yhteensä | G6: 2 | M6: 2 | P6: 1 | Q6: 8/16 | R6: 2/6 | S6: 3/3 | T6: 3/5 | U6: 0/5 | V6: 50.0 %
B8: A-POJAT | C8: Itä - Länsi, tulos | D8: Joukkue | E8: Seura | G8: V | H8: T | I8: H | J8: Up. | K8: Lj. | L8: Palk. | M8: O | N8: K | O8: L | P8: T | Q8: KL | R8: 1 | S8: 2 | T8: 3 | U8: k | V8: KL-% | W8: Pelinjohtaja | X8: Yleisöä
B9: 19.07. 1985 Kitee | C9: 5-22 | D9: Itä | E9: HP | I9: 1 | M9: 1 | W9: Pekka Arffman | X9: 950
B10: 12.07. 1986 Ylihärmä | C10: 11-16 | D10: Itä | E10: HP | I10: 1 | J10: 2v | K10: 6 | M10: 1 | P10: 1 | Q10: 1/8 | R10: 1/4 | T10: 0/2 | U10: 0/2 | V10: 12.5 % | W10: Pekka Arffman | X10: 163
B11: Yhteensä | I11: 2 | M11: 2 | P11: 1 | Q11: 1/8 | R11: 1/4 | T11: 0/2 | U11: 0/2 | V11: 12.5 %
